fUST/lending_fUST_20251221
["ID","MTS","AMOUNT","RATE_DAILY","PERIOD"]
[399287257,1766246410189,5000.0,0.00013342,2]
[399287258,1766246410623,-364.64554706,0.00013382,2]
[399287259,1766246410645,-425.55015581,0.00013382,2]
[399287260,1766246418093,790.3733193,0.00012591,2]
[399287261,1766246418885,-155.08435123,0.00013382,2]
[399287262,1766246572120,5339.1068819,0.00012596,2]
[399287263,1766246688869,5000.0,0.00013342,2]
[399287264,1766246689783,-322.31467178,0.00013378,2]
[399287265,1766246691935,-531.30462374,0.00013378,2]
[399287266,1766246694488,-9.98775466,0.00013378,2]
[399287267,1766246694513,-29.36549296,0.00013382,2]
[399287268,1766246694538,-238.01316205,0.00013382,2]
[399287269,1766246694564,-15.13682869,0.00013382,2]
[399287270,1766246696028,-164.98032726,0.00013382,2]
[399287271,1766246706061,2309.12700765,0.00013342,2]
[399287272,1766246713938,5000.0,0.00013342,2]
[399287273,1766246738892,5000.0,0.00013342,2]
[399287274,1766246763632,5000.0,0.00013342,2]
[399287275,1766246788199,418.2708432,0.00013342,2]
[399287377,1766246830045,172.604762,6.296e-05,2]
[399287378,1766246830207,172.604762,0.00012592,2]
[399287816,1766246874694,-191.88407641,0.00013382,2]
[399287874,1766246877429,-151.34372274,0.00013382,2]
[399287950,1766246881034,343.22779915,0.00013342,2]
[399288000,1766246883214,549.00713459,0.00013273,2]
[399290607,1766247003433,455.56275353,0.00013273,2]
[399290729,1766247009964,-103.88839035,0.00013382,2]
[399290731,1766247009988,-610.0,0.00013382,2]
[399290732,1766247010015,-28.41030722,0.00013412,2]
[399290734,1766247010077,164.519411,0.00012669,2]
[399290737,1766247010146,164.519411,0.00012669,61]
[399290739,1766247010227,164.519411,0.00012669,120]
[399290916,1766247019878,742.29869757,0.00013342,2]
[399291092,1766247029451,-1597.50059189,0.00041327,64]
[399291094,1766247029484,-1630.99352345,0.00041327,120]
[399291095,1766247029515,-150.0,0.00041327,30]
[399291097,1766247029545,-150.0,0.00041327,30]
[399291099,1766247029576,-150.0,0.00041327,30]
[399291100,1766247029607,-150.0,0.00041327,30]
[399291102,1766247029638,-205.52197457,0.00041327,30]
[399291104,1766247029668,-836.10153,0.00041327,60]
[399291105,1766247029698,-786.2637,0.00041327,60]
[399291107,1766247029728,-786.2637,0.00041327,60]
[399291108,1766247029757,-786.2637,0.00041327,60]
[399291110,1766247029786,-786.2637,0.00041327,60]
[399291112,1766247029814,-786.2637,0.00041327,60]
[399291113,1766247029842,-1030.0987054,0.00041327,120]
[399291115,1766247029876,-20832.55219473,0.00041327,120]
[399291117,1766247029907,-5996.69347566,0.00041327,120]
[399291118,1766247029937,-915.08258444,0.00041327,30]
[399291120,1766247029969,-1002.91569558,0.00041327,120]
[399291121,1766247029999,-894.16714745,0.00041327,30]
[399291123,1766247030029,-2221.2097039,0.00041327,120]
[399291124,1766247030058,-1459.53487064,0.00041327,120]
[399291126,1766247030087,-287.00054381,0.00041327,120]
[399291128,1766247030114,-1548.61406251,0.00041327,30]
[399291129,1766247030142,-967.72606212,0.00041327,120]
[399291131,1766247030169,-598.42239779,0.00041327,30]
[399291132,1766247030196,-446.59090038,0.00041327,120]
[399291134,1766247030229,-161.8205495,0.00041327,120]
[399291135,1766247030259,-1006.18598057,0.00041327,120]
[399291137,1766247030290,-1864.61178937,0.00041327,60]
[399291139,1766247030321,-955.4638693,0.00041327,120]
[399291140,1766247030350,-423.8432029,0.00041327,120]
[399291142,1766247030378,-923.58313147,0.00041327,60]
[399291143,1766247030406,-1018.52728894,0.00041327,30]
[399291145,1766247030434,-372.5847781,0.00041327,120]
[399291146,1766247030461,-882.15879602,0.00041327,120]
[399291148,1766247030489,-315.5108051,0.00041327,120]
[399291149,1766247030518,-721.26697937,0.00041327,120]
[399291151,1766247030547,-1540.1730896,0.00041327,30]
[399291153,1766247030574,-174.72461171,0.00041327,120]
[399291154,1766247030602,-515.00807085,0.00041327,30]
[399291156,1766247030630,-3258.21944552,0.00041327,60]
[399291157,1766247030656,-240.82074905,0.00041327,120]
[399291159,1766247030680,-252.53813186,0.00041327,120]
[399291160,1766247030703,-775.70285553,0.00041327,120]
[399291162,1766247030726,-213.94309041,0.00041327,30]
[399291163,1766247030748,-1068.57356133,0.00041327,120]
[399291165,1766247030770,-547.82156413,0.00041327,90]
[399291186,1766247031391,-300.0,0.00041327,120]
[399291188,1766247031441,-534.56470648,0.00041327,30]
[399291190,1766247031466,-1911.52377606,0.00041327,30]
[399291191,1766247031491,-578.34790312,0.00041327,120]
[399291193,1766247031517,-1135.38838356,0.00041327,30]
[399291194,1766247031541,-400.0,0.00041327,120]
[399291195,1766247031564,-305.82009914,0.00041327,120]
[399291197,1766247031587,-1051.04484884,0.00041327,120]
[399291198,1766247031610,-487.75625191,0.00041327,30]
[399291200,1766247031635,-718.60794661,0.00041327,120]
[399291202,1766247031657,-921.23625336,0.00041327,120]
[399291206,1766247031681,-1789.0165164,0.00041327,120]
[399291210,1766247031703,-544.7667501,0.00041327,120]
[399291214,1766247031727,-331.72407636,0.00041327,120]
[399291218,1766247031750,-225.14383046,0.00041327,120]
[399291223,1766247031774,-330.33482935,0.00041327,120]
[399291226,1766247031797,-185.3644019,0.00041327,30]
[399291231,1766247031820,-568.18423374,0.00041327,120]
[399291232,1766247031843,-434.81158268,0.00041327,60]
[399291234,1766247031865,-441.81290301,0.00041327,60]
[399291235,1766247031891,-935.69517542,0.00041327,60]
[399291237,1766247031914,-169.40939062,0.00041327,120]
[399291238,1766247031937,-20141.0,0.00041327,30]
[399291240,1766247031963,-207.65274813,0.00041327,120]
[399291241,1766247031987,-541.95616816,0.00041327,120]
[399291243,1766247032010,-553.78844113,0.00041327,120]
[399291244,1766247032035,-359.18879253,0.00041327,120]
[399291246,1766247032058,-1054.4432425,0.00041327,120]
[399291247,1766247032082,-627.68521575,0.00041327,120]
[399291249,1766247032106,-922.1571206,0.00041327,60]
[399291250,1766247032128,-1565.94910855,0.00041327,30]
[399291252,1766247032151,-241.02709221,0.00041327,60]
[399291253,1766247032173,-720.79074467,0.00041327,120]
[399291254,1766247032196,-322.52997477,0.00041327,120]
[399291256,1766247032219,-368.67216636,0.00041327,120]
[399291257,1766247032244,-358.63458097,0.00041327,120]
[399291259,1766247032271,-635.25490993,0.00041327,120]
[399291260,1766247032293,-179.86167778,0.00041327,120]
[399291262,1766247032318,-267.07273497,0.00041327,120]
[399291264,1766247032354,-632.1882,0.00041327,30]
[399291265,1766247032376,-2092.365804,0.00041327,120]
[399291266,1766247032399,-177.89556144,0.00041327,120]
[399291268,1766247032422,-1029.06009132,0.00041327,60]
[399291269,1766247032445,-284.71467966,0.00041327,120]
[399291271,1766247032468,-508.96769284,0.00041327,120]
[399291272,1766247032489,-540.2297665,0.00041327,30]
[399291274,1766247032511,-313.68319841,0.00041327,60]
[399291275,1766247032532,-697.87829455,0.00041327,120]
[399291277,1766247032554,-628.7652715,0.00041327,120]
[399291278,1766247032575,-163.10838536,0.00041327,120]
[399291280,1766247032597,-1020.48810502,0.00041327,120]
[399291281,1766247032619,-1013.1603919,0.00041327,30]
[399291283,1766247032642,-580.6926313,0.00041327,60]
[399291284,1766247032666,-1065.52604844,0.00041327,60]
[399291286,1766247032689,-339.11792924,0.00041327,30]
[399291287,1766247032712,-345.09450385,0.00041327,31]
[399291288,1766247032736,-753.54011001,0.00041327,120]
[399291290,1766247032760,-846.82335278,0.00041327,120]
[399291291,1766247032783,-182.85135206,0.00041327,30]
[399291293,1766247032807,-392.55093364,0.00041327,30]
[399291294,1766247032830,-1541.41989584,0.00041327,120]
[399291296,1766247032854,-1033.65181087,0.00041327,30]
[399291297,1766247032877,-769.53490269,0.00041327,31]
[399291299,1766247032900,-1108.37675705,0.00041327,120]
[399291300,1766247032925,-721.14121858,0.00041327,35]
[399291302,1766247032949,-395.29398764,0.00041327,30]
[399291303,1766247032975,-1297.97863106,0.00041327,120]
[399291305,1766247032999,-1869.47523674,0.00041327,60]
[399291306,1766247033023,-797.47561,0.00041327,120]
[399291308,1766247033047,-430.0,0.00041327,30]
[399291309,1766247033072,-200000.0,0.00041327,30]
[399291311,1766247033099,-150.0,0.00041327,120]
[399291312,1766247033125,-150.0,0.00041327,120]
[399291314,1766247033149,-2000.0,0.00041327,120]
[399291315,1766247033178,-2000.0,0.00041327,120]
[399291317,1766247033203,-2000.0,0.00041327,120]
[399291318,1766247033227,-2000.0,0.00041327,120]
[399291320,1766247033252,-2000.0,0.00041327,120]
[399291321,1766247033278,-1660.55586726,0.00041327,120]
[399291323,1766247033302,-1319.64,0.00041327,120]
[399291324,1766247033326,-301.45969754,0.00041327,120]
[399291325,1766247033351,-2629.62209859,0.00041327,120]
[399291327,1766247033374,-3935.94506104,0.00041327,120]
[399291328,1766247033399,-479.0,0.00041327,120]
[399291330,1766247033424,-275.84465832,0.00041327,30]
[399291331,1766247033448,-299.54844707,0.00041327,30]
[399291332,1766247033472,-1180.86719132,0.00041327,60]
[399291334,1766247033496,-507.2399055,0.00041327,31]
[399291335,1766247033521,-150.0,0.00041327,30]
[399291339,1766247033690,-150.0,0.00041327,30]
[399291341,1766247033734,-150.0,0.00041327,120]
[399291342,1766247033759,-150.0,0.00041327,120]
[399291344,1766247033782,-150.0,0.00041327,120]
[399291345,1766247033805,-150.0,0.00041327,120]
[399291347,1766247033829,-150.0,0.00041327,120]
[399291348,1766247033852,-150.0,0.00041327,120]
[399291349,1766247033875,-150.0,0.00041327,120]
[399291351,1766247033900,-921.0,0.00041327,120]
[399291352,1766247033924,-477.10184716,0.00041327,120]
[399291354,1766247033947,-23751.38845805,0.00041327,120]
[399291355,1766247033974,-1198.23849,0.00041327,120]
[399291357,1766247033999,-365.57660303,0.00041327,120]
[399291358,1766247034024,-365.57660303,0.00041327,120]
[399291359,1766247034049,-2133.7259936,0.00041327,120]
[399291361,1766247034072,-150.0,0.00041327,120]
[399291362,1766247034101,-100000.0,0.00041327,30]
[399291364,1766247034127,-20554.0,0.00041327,30]
[399291365,1766247034151,-193.53605808,0.00041327,120]
[399291367,1766247034175,-193.53605808,0.00041327,120]
[399291368,1766247034199,-1000.0,0.00041327,120]
[399291369,1766247034224,-1000.0,0.00041327,120]
[399291371,1766247034249,-1000.0,0.00041327,120]
[399291372,1766247034273,-1000.0,0.00041327,120]
[399291374,1766247034296,-1000.0,0.00041327,120]
[399291375,1766247034321,-1000.0,0.00041327,120]
[399291377,1766247034346,-1000.0,0.00041327,120]
[399291378,1766247034369,-297.81287308,0.00041327,120]
[399291380,1766247034393,-333.33333333,0.00041327,120]
[399291381,1766247034417,-333.33333333,0.00041327,120]
[399291382,1766247034442,-333.33333333,0.00041327,120]
[399291384,1766247034466,-333.33333333,0.00041327,120]
[399291385,1766247034492,-333.33333333,0.00041327,120]
[399291387,1766247034518,-333.33333333,0.00041327,120]
[399291388,1766247034542,-333.33333333,0.00041327,120]
[399291390,1766247034564,-186.37088704,0.00041327,120]
[399291391,1766247034588,-186.37088704,0.00041327,120]
[399291393,1766247034611,-186.37088704,0.00041327,120]
[399291394,1766247034635,-597.10845161,0.00041327,120]
[399291395,1766247034658,-597.10845161,0.00041327,120]
[399291397,1766247034681,-597.10845161,0.00041327,120]
[399291398,1766247034704,-597.10845161,0.00041327,120]
[399291400,1766247034728,-597.10845161,0.00041327,120]
[399291401,1766247034751,-597.10845161,0.00041327,120]
[399291403,1766247034774,-597.10845161,0.00041327,120]
[399291404,1766247034798,-597.10845161,0.00041327,120]
[399291405,1766247034822,-597.10845161,0.00041327,120]
[399291407,1766247034846,-597.10845161,0.00041327,120]
[399291408,1766247034870,-597.10845161,0.00041327,120]
[399291410,1766247034894,-597.10845161,0.00041327,120]
[399291411,1766247034918,-597.10845161,0.00041327,120]
[399291413,1766247034942,-597.10845161,0.00041327,120]
[399291414,1766247034969,-199.03615051,0.00041327,120]
[399291416,1766247034993,-199.03615051,0.00041327,120]
[399291417,1766247035018,-199.03615051,0.00041327,120]
[399291418,1766247035042,-150.1,0.00041327,40]
[399291420,1766247035066,-35423.46957857,0.00041327,20]
[399291421,1766247035089,-168157.49129107,0.00041327,20]
[399291423,1766247035113,-207.52942953,0.00041327,120]
[399291424,1766247035137,-255.20833333,0.00041327,120]
[399291425,1766247035160,-487.36727482,0.00041327,120]
[399291427,1766247035183,-255.20833333,0.00041327,120]
[399291428,1766247035207,-487.36727482,0.00041327,120]
[399291430,1766247035231,-207.52942953,0.00041327,120]
[399291431,1766247035255,-255.20833333,0.00041327,120]
[399291432,1766247035279,-207.52942953,0.00041327,120]
[399291434,1766247035302,-487.36727482,0.00041327,120]
[399291435,1766247035326,-487.36727482,0.00041327,120]
[399291437,1766247035350,-255.20833333,0.00041327,120]
[399291438,1766247035374,-207.52942953,0.00041327,120]
[399291440,1766247035397,-487.36727482,0.00041327,120]
[399291441,1766247035422,-207.52942953,0.00041327,120]
[399291442,1766247035446,-255.20833333,0.00041327,120]
[399291444,1766247035469,-207.52942953,0.00041327,120]
[399291445,1766247035493,-255.20833333,0.00041327,120]
[399291447,1766247035516,-487.36727482,0.00041327,120]
[399291448,1766247035539,-207.52942953,0.00041327,120]
[399291449,1766247035564,-487.36727482,0.00041327,120]
[399291451,1766247035587,-255.20833333,0.00041327,120]
[399291452,1766247035611,-3000.0,0.00041327,120]
[399291454,1766247035634,-207.52942953,0.00041327,120]
[399291455,1766247035659,-487.36727482,0.00041327,120]
[399291457,1766247035683,-487.36727482,0.00041327,120]
[399291458,1766247035706,-487.36727482,0.00041327,120]
[399291459,1766247035731,-487.36727482,0.00041327,120]
[399291461,1766247035754,-487.36727482,0.00041327,120]
[399291462,1766247035777,-487.36727482,0.00041327,120]
[399291464,1766247035800,-487.36727482,0.00041327,120]
[399291465,1766247035823,-4859.0,0.00041327,120]
[399291466,1766247035847,-9143.0,0.00041327,120]
[399291468,1766247035870,-4715.23920924,0.00041327,60]
[399291469,1766247035894,-500.0,0.00041327,30]
[399291471,1766247035918,-500.0,0.00041327,30]
[399291472,1766247035941,-500.0,0.00041327,30]
[399291473,1766247035967,-500.0,0.00041327,30]
[399291475,1766247035992,-500.0,0.00041327,30]
[399291479,1766247036184,-500.0,0.00041327,30]
[399291481,1766247036209,-500.0,0.00041327,30]
[399291482,1766247036233,-255.20833331,0.00041327,120]
[399291483,1766247036257,-162.45575826,0.00041327,120]
[399291485,1766247036280,-162.45575826,0.00041327,120]
[399291486,1766247036304,-500.0,0.00041327,30]
[399291488,1766247036329,-500.0,0.00041327,30]
[399291489,1766247036353,-500.0,0.00041327,30]
[399291491,1766247036377,-475.39528688,0.00041327,30]
[399291492,1766247036400,-500.0,0.00041327,30]
[399291494,1766247036424,-333.33333333,0.00041327,120]
[399291495,1766247036448,-333.33333333,0.00041327,120]
[399291496,1766247036472,-333.33333333,0.00041327,120]
[399291497,1766247036495,-333.33333333,0.00041327,120]
[399291498,1766247036520,-333.33333333,0.00041327,120]
[399291499,1766247036545,-333.33333333,0.00041327,120]
[399291500,1766247036568,-333.33333333,0.00041327,120]
[399291501,1766247036591,-333.33333333,0.00041327,120]
[399291502,1766247036614,-500.0,0.00041327,120]
[399291503,1766247036638,-333.33333333,0.00041327,120]
[399291504,1766247036663,-333.33333333,0.00041327,120]
[399291505,1766247036689,-333.33333333,0.00041327,120]
[399291506,1766247036714,-333.33333333,0.00041327,120]
[399291507,1766247036739,-333.33333333,0.00041327,120]
[399291508,1766247036762,-333.33333333,0.00041327,120]
[399291509,1766247036785,-333.33333333,0.00041327,120]
[399291510,1766247036809,-333.33333333,0.00041327,120]
[399291511,1766247036832,-333.33333333,0.00041327,120]
[399291512,1766247036856,-333.33333333,0.00041327,120]
[399291513,1766247036880,-333.33333333,0.00041327,120]
[399291514,1766247036904,-333.33333333,0.00041327,120]
[399291515,1766247036928,-333.33333333,0.00041327,120]
[399291516,1766247036952,-333.33333333,0.00041327,120]
[399291517,1766247036980,-333.33333333,0.00041327,120]
[399291518,1766247037009,-333.33333333,0.00041327,120]
[399291519,1766247037033,-333.33333333,0.00041327,120]
[399291520,1766247037059,-333.33333333,0.00041327,120]
[399291521,1766247037083,-333.33333333,0.00041327,120]
[399291522,1766247037107,-333.33333333,0.00041327,120]
[399291524,1766247037132,-333.33333333,0.00041327,120]
[399291525,1766247037158,-333.33333333,0.00041327,120]
[399291527,1766247037184,-162.45575825,0.00041327,120]
[399291529,1766247037210,-18857.75,0.00041327,120]
[399291531,1766247037237,-18857.75,0.00041327,120]
[399291532,1766247037263,-18857.75,0.00041327,120]
[399291534,1766247037290,-18857.75,0.00041327,120]
[399291535,1766247037317,-18857.75,0.00041327,120]
[399291537,1766247037343,-18857.75,0.00041327,120]
[399291538,1766247037368,-18857.75,0.00041327,120]
[399291540,1766247037393,-18857.75,0.00041327,120]
[399291541,1766247037419,-18857.75,0.00041327,120]
[399291543,1766247037444,-18857.75,0.00041327,120]
[399291544,1766247037470,-18857.75,0.00041327,120]
[399291546,1766247037495,-18857.75,0.00041327,120]
[399291547,1766247037521,-18857.75,0.00041327,120]
[399291549,1766247037546,-18857.75,0.00041327,120]
[399291550,1766247037571,-18857.75,0.00041327,120]
[399291552,1766247037597,-18857.75,0.00041327,120]
[399291553,1766247037624,-18857.75,0.00041327,120]
[399291555,1766247037649,-18857.75,0.00041327,120]
[399291556,1766247037675,-18857.75,0.00041327,120]
[399291558,1766247037702,-18857.75,0.00041327,120]
[399291559,1766247037728,-18857.75,0.00041327,120]
[399291561,1766247037754,-18857.75,0.00041327,120]
[399291562,1766247037780,-18857.75,0.00041327,120]
[399291564,1766247037806,-18857.79836852,0.00041327,120]
[399291605,1766247039791,-121.58969278,0.00013412,2]
[399291606,1766247039802,-2841.26684449,0.00013492,2]
[399291607,1766247039813,-1023.39779363,0.00013501,2]
[399291608,1766247039823,-300.0,0.0001359,2]
[399291609,1766247039842,-500.0,0.00013591,2]
[399291611,1766247039855,-500.0,0.00013591,2]
[399291612,1766247039865,-500.0,0.00013591,2]
[399291613,1766247039875,-500.0,0.00013591,2]
[399291614,1766247039884,-500.0,0.00013591,2]
[399291615,1766247039893,-184.47331872,0.00013591,2]
[399291617,1766247039903,-574.71774709,0.00013591,2]
[399291618,1766247039912,-500.0,0.00013591,2]
[399291619,1766247039922,-596.60610422,0.00013591,2]
[399291620,1766247039932,-500.0,0.00013591,2]
[399291621,1766247039941,-500.0,0.00013591,2]
[399291622,1766247039950,-500.0,0.00013591,2]
[399291624,1766247039960,-500.0,0.00013591,2]
[399291625,1766247039971,-500.0,0.00013591,2]
[399291626,1766247039983,-500.0,0.00013591,2]
[399291627,1766247039993,-500.0,0.00013591,2]
[399291628,1766247040002,-500.0,0.00013591,2]
[399291630,1766247040012,-500.0,0.00013591,2]
[399291631,1766247040022,-236.28805785,0.00013591,2]
[399291632,1766247040032,-500.0,0.00013591,2]
[399291633,1766247040042,-500.0,0.00013591,2]
[399291634,1766247040051,-500.0,0.00013591,2]
[399291635,1766247040060,-500.0,0.00013591,2]
[399291637,1766247040070,-500.0,0.00013591,2]
[399291638,1766247040080,-500.0,0.00013591,2]
[399291639,1766247040089,-500.0,0.00013591,2]
[399291640,1766247040100,-500.0,0.00013591,2]
[399291641,1766247040110,-293.84658963,0.00013591,2]
[399291643,1766247040120,-500.0,0.00013591,2]
[399291644,1766247040129,-500.0,0.00013591,2]
[399291645,1766247040138,-500.0,0.00013591,2]
[399291646,1766247040150,-500.0,0.00013591,2]
[399291647,1766247040170,-500.0,0.00013591,2]
[399291649,1766247040191,-500.0,0.00013591,2]
[399291651,1766247040201,-650.0,0.00013591,2]
[399291652,1766247040210,-500.0,0.00013591,2]
[399291654,1766247040219,-500.0,0.00013591,2]
[399291655,1766247040229,-421.74497478,0.00013591,2]
[399291657,1766247040238,-500.0,0.00013591,2]
[399291658,1766247040247,-500.0,0.00013591,2]
[399291659,1766247040257,-500.0,0.00013591,2]
[399291660,1766247040265,-500.0,0.00013591,2]
[399291661,1766247040276,-500.0,0.00013591,2]
[399291662,1766247040285,-500.0,0.00013591,2]
[399291664,1766247040294,-500.0,0.00013591,2]
[399291665,1766247040303,-500.0,0.00013591,2]
[399291666,1766247040312,-492.39232625,0.00013591,2]
[399291667,1766247040321,-500.0,0.00013591,2]
[399291668,1766247040330,-500.0,0.00013591,2]
[399291669,1766247040339,-500.0,0.00013591,2]
[399291671,1766247040349,-500.0,0.00013591,2]
[399291672,1766247040358,-500.0,0.00013591,2]
[399291673,1766247040367,-500.0,0.00013591,2]
[399291674,1766247040376,-500.0,0.00013591,2]
[399291675,1766247040385,-500.0,0.00013591,2]
[399291677,1766247040394,-500.0,0.00013591,2]
[399291678,1766247040403,-500.0,0.00013591,2]
[399291679,1766247040413,-500.0,0.00013591,2]
[399291680,1766247040422,-500.0,0.00013591,2]
[399291681,1766247040432,-500.0,0.00013591,2]
[399291682,1766247040441,-500.0,0.00013591,2]
[399291684,1766247040451,-500.0,0.00013591,2]
[399291685,1766247040461,-500.0,0.00013591,2]
[399291686,1766247040471,-500.0,0.00013591,2]
[399291687,1766247040480,-500.0,0.00013591,2]
[399291688,1766247040490,-500.0,0.00013591,2]
[399291690,1766247040499,-500.0,0.00013591,2]
[399291691,1766247040509,-500.0,0.00013591,2]
[399291692,1766247040518,-500.0,0.00013591,2]
[399291693,1766247040528,-500.0,0.00013591,2]
[399291694,1766247040537,-500.0,0.00013591,2]
[399291696,1766247040546,-500.0,0.00013591,2]
[399291697,1766247040555,-500.0,0.00013591,2]
[399291698,1766247040565,-500.0,0.00013591,2]
[399291699,1766247040575,-392.68298143,0.00013591,2]
[399291700,1766247040583,-500.0,0.00013591,2]
[399291701,1766247040593,-500.0,0.00013591,2]
[399291703,1766247040602,-275.0,0.00013591,2]
[399291704,1766247040611,-500.0,0.00013591,2]
[399291705,1766247040620,-500.0,0.00013591,2]
[399291706,1766247040629,-500.0,0.00013591,2]
[399291707,1766247040638,-500.0,0.00013591,2]
[399291709,1766247040647,-500.0,0.00013591,2]
[399291710,1766247040657,-500.0,0.00013591,2]
[399291711,1766247040666,-500.0,0.00013591,2]
[399291712,1766247040675,-500.0,0.00013591,2]
[399291713,1766247040684,-500.0,0.00013591,2]
[399291714,1766247040694,-500.0,0.00013591,2]
[399291716,1766247040703,-500.0,0.00013591,2]
[399291717,1766247040712,-500.0,0.00013591,2]
[399291718,1766247040721,-500.0,0.00013591,2]
[399291719,1766247040730,-500.0,0.00013591,2]
[399291720,1766247040739,-500.0,0.00013591,2]
[399291722,1766247040749,-500.0,0.00013591,2]
[399291723,1766247040757,-500.0,0.00013591,2]
[399291724,1766247040766,-500.0,0.00013591,2]
[399291725,1766247040775,-500.0,0.00013591,2]
[399291726,1766247040784,-500.0,0.00013591,2]
[399291727,1766247040793,-500.0,0.00013591,2]
[399291729,1766247040802,-500.0,0.00013591,2]
[399291730,1766247040812,-500.0,0.00013591,2]
[399291731,1766247040821,-500.0,0.00013591,2]
[399291732,1766247040831,-500.0,0.00013591,2]
[399291733,1766247040840,-500.0,0.00013591,2]
[399291735,1766247040849,-500.0,0.00013591,2]
[399291736,1766247040858,-500.0,0.00013591,2]
[399291737,1766247040867,-285.78673034,0.00013591,2]
[399291738,1766247040877,-500.0,0.00013591,2]
[399291739,1766247040886,-500.0,0.00013591,2]
[399291740,1766247040895,-499.99999999,0.00013591,2]
[399291742,1766247040904,-50000.0,0.00013592,2]
[399291743,1766247040915,-500.0,0.00013601,2]
[399291744,1766247040924,-184.792,0.00013606,2]
[399291745,1766247040933,-1129.02002182,0.00013683,2]
[399291746,1766247040942,-501.86758368,0.00013698,2]
[399291748,1766247040952,-674.47,0.00013698,2]
[399291749,1766247040961,-674.47,0.00013698,2]
[399291750,1766247040971,-674.47,0.00013698,2]
[399291751,1766247040984,-674.47,0.00013698,2]
[399291752,1766247040993,-674.47,0.00013698,2]
[399291754,1766247041003,-297.358467,0.00013699,2]
[399291755,1766247041012,-500.0,0.00013699,2]
[399291756,1766247041023,-428.42369169,0.00013702,2]
[399291757,1766247041032,-2881.1289086,0.00013708,2]
[399291758,1766247041041,-1998.8483375,0.00013708,2]
[399291759,1766247041052,-674.47,0.00013708,2]
[399291761,1766247041062,-3034.2001553,0.00013709,2]
[399291762,1766247041071,-300.0,0.00013868,2]
[399291763,1766247041081,-300.0,0.00013868,2]
[399291764,1766247041090,-300.0,0.00013868,2]
[399291765,1766247041099,-300.0,0.00013868,2]
[399291767,1766247041108,-300.0,0.00013868,2]
[399291768,1766247041118,-300.0,0.00013868,2]
[399291769,1766247041128,-300.0,0.00013868,2]
[399291770,1766247041137,-300.0,0.00013868,2]
[399291771,1766247041146,-300.0,0.00013868,2]
[399291773,1766247041156,-300.0,0.00013868,2]
[399291774,1766247041166,-300.0,0.00013868,2]
[399291775,1766247041175,-300.0,0.00013868,2]
[399291776,1766247041184,-300.0,0.00013868,2]
[399291777,1766247041193,-300.0,0.00013868,2]
[399291778,1766247041203,-300.0,0.00013868,2]
[399291780,1766247041212,-600.0,0.00013868,2]
[399291781,1766247041221,-2475.28583286,0.00014242,2]
[399291782,1766247041230,-1000.0,0.00014247,2]
[399291783,1766247041239,-1398.2588827,0.00014631,2]
[399291784,1766247041248,-1500.0,0.00014795,2]
[399291785,1766247041258,-2505.71699154,0.000148,2]
[399291787,1766247041267,-420.0,0.00014895,2]
[399291788,1766247041276,-1000.0,0.00015,2]
[399291789,1766247041285,-674.47,0.00015071,2]
[399291790,1766247041295,-2505.71699154,0.00015072,2]
[399291791,1766247041304,-449.58403507,0.0001523,2]
[399291793,1766247041314,-4560.38904481,0.0001523,2]
[399291794,1766247041323,-5391.81600769,0.0001523,2]
[399291795,1766247041332,-1111.0,0.0001523,2]
[399291796,1766247041342,-500.0,0.0001523,2]
[399291797,1766247041351,-500.0,0.0001523,2]
[399291799,1766247041362,-500.0,0.0001523,2]
[399291800,1766247041371,-500.0,0.0001523,2]
[399291801,1766247041380,-500.0,0.0001523,2]
[399291802,1766247041389,-250.0,0.0001523,2]
[399291803,1766247041398,-500.0,0.0001523,2]
[399291804,1766247041407,-500.0,0.0001523,2]
[399291806,1766247041416,-500.0,0.0001523,2]